[Event "*** Titled Tuesday Blitz"]
[Site "Chess.com"]
[Date "2019.04.02"]
[Round "6"]
[White "Caterpiller35"]
[Black "pastouche06"]
[Result "1-0"]
[WhiteElo "2226"]
[BlackElo "2378"]
[TimeControl "180+2"]
[EndTime "15:20:27 PDT"]
[Termination "Caterpiller35 won by resignation"]

1. d4 {[%clk 0:03:01.9]} 1... Nf6 {[%clk 0:03:00.1]} 2. Bf4 {[%clk 0:03:02.9]}
2... d5 {[%clk 0:03:00.8]} 3. e3 {[%clk 0:03:04.1]} 3... e6 {[%clk 0:03:02.4]}
4. c3 {[%clk 0:03:01.4]} 4... Bd6 {[%clk 0:03:03.3]} 5. Bg3 {[%clk 0:03:01.3]}
5... O-O {[%clk 0:03:04.3]} 6. Nd2 {[%clk 0:03:02.4]} 6... c5 {[%clk 0:03:05.7]}
7. Ngf3 {[%clk 0:03:02.9]} 7... Qc7 {[%clk 0:03:06.8]} 8. Bd3 {[%clk 0:03:01.6]}
8... Nbd7 {[%clk 0:03:08]} 9. e4 {[%clk 0:02:54.8]} 9... cxd4 {[%clk 0:03:04.4]}
10. Nxd4 {[%clk 0:02:46.3]} 10... Bxg3 {[%clk 0:02:47.5]} 11. hxg3 {[%clk
0:02:46.4]} 11... Nc5 {[%clk 0:02:44.4]} 12. Bc2 {[%clk 0:02:47.1]} 12... dxe4
{[%clk 0:02:40.9]} 13. g4 {[%clk 0:02:36.1]} 13... e3 {[%clk 0:02:22.3]} 14. g5
{[%clk 0:02:09.9]} 14... exd2+ {[%clk 0:02:15.4]} 15. Qxd2 {[%clk 0:02:11.8]}
15... Qe5+ {[%clk 0:02:11.9]} 16. Kf1 {[%clk 0:02:09.2]} 16... Nfe4 {[%clk
0:02:12.7]} 17. Qe3 {[%clk 0:02:07.6]} 17... Qxg5 {[%clk 0:01:54.8]} 18. Qxg5
{[%clk 0:01:53.7]} 18... Nxg5 {[%clk 0:01:55.2]} 19. f4 {[%clk 0:01:55.6]} 19...
Nge4 {[%clk 0:01:55.4]} 20. b4 {[%clk 0:01:46]} 20... Ng3+ {[%clk 0:01:55.5]}
21. Kf2 {[%clk 0:01:41.9]} 21... Nce4+ {[%clk 0:01:51.4]} 22. Kf3 {[%clk
0:01:42.8]} 22... f5 {[%clk 0:01:46.1]} 23. Rh3 {[%clk 0:01:42.3]} 23... Nd2+
{[%clk 0:01:43.2]} 24. Kxg3 {[%clk 0:01:39.2]} 24... h6 {[%clk 0:01:31.6]} 25.
Rd1 {[%clk 0:01:38.7]} 25... Nc4 {[%clk 0:01:30]} 26. Bb3 {[%clk 0:01:38.9]}
26... Nd6 {[%clk 0:01:25.5]} 27. Nxe6 {[%clk 0:01:29.6]} 27... Ne4+ {[%clk
0:01:26.4]} 28. Kf3 {[%clk 0:01:26.8]} 28... Bxe6 {[%clk 0:01:27.6]} 29. Bxe6+
{[%clk 0:01:27.3]} 29... Kh8 {[%clk 0:01:26.2]} 30. Rd3 {[%clk 0:01:24.6]} 30...
Rae8 {[%clk 0:01:21.4]} 31. Bd5 {[%clk 0:01:25.5]} 31... Re7 {[%clk 0:01:08.4]}
32. Rh5 {[%clk 0:01:10.9]} 32... Rf6 {[%clk 0:00:51.1]} 33. c4 {[%clk
0:01:11.5]} 33... b6 {[%clk 0:00:37.4]} 34. Rd4 {[%clk 0:01:12.4]} 34... Nc3
{[%clk 0:00:32.5]} 35. a3 {[%clk 0:01:10.8]} 35... Kh7 {[%clk 0:00:31.2]} 36. g4
{[%clk 0:01:09.5]} 36... fxg4+ {[%clk 0:00:27.9]} 37. Kxg4 {[%clk 0:01:11.4]}
37... Ne2 {[%clk 0:00:28.6]} 38. Re4 {[%clk 0:01:10.6]} 38... Rxe4 {[%clk
0:00:24.4]} 39. Bxe4+ {[%clk 0:01:12.5]} 39... g6 {[%clk 0:00:25.3]} 40. Re5
{[%clk 0:00:58.2]} 40... Rxf4+ {[%clk 0:00:25.3]} 41. Kh3 {[%clk 0:00:59.2]}
41... Kg7 {[%clk 0:00:19]} 42. Bd5 {[%clk 0:00:39.1]} 42... Rf2 {[%clk
0:00:10.9]} 43. Re7+ {[%clk 0:00:38]} 43... Kf6 {[%clk 0:00:11.4]} 44. Rf7+
{[%clk 0:00:39]} 1-0

[Event "*** Titled Tuesday Blitz"]
[Site "Chess.com"]
[Date "2019.04.02"]
[Round "6"]
[White "DACF2905"]
[Black "HrvojeZagreb"]
[Result "1/2-1/2"]
[WhiteElo "2081"]
[BlackElo "2046"]
[TimeControl "180+2"]
[EndTime "15:20:31 PDT"]
[Termination "Game drawn - insufficient material"]

1. e4 {[%clk 0:03:01.9]} 1... e6 {[%clk 0:03:00.8]} 2. d4 {[%clk 0:03:01.9]}
2... d5 {[%clk 0:03:01.9]} 3. Nc3 {[%clk 0:03:02.6]} 3... dxe4 {[%clk 0:03:03]}
4. Nxe4 {[%clk 0:03:01.1]} 4... Nd7 {[%clk 0:03:04.9]} 5. Nf3 {[%clk 0:03:00.7]}
5... Ngf6 {[%clk 0:03:05.9]} 6. Nxf6+ {[%clk 0:03:00.6]} 6... Nxf6 {[%clk
0:03:07.8]} 7. Bd3 {[%clk 0:03:01.5]} 7... b6 {[%clk 0:03:06.6]} 8. Qe2 {[%clk
0:03:02.4]} 8... Bb7 {[%clk 0:03:07.8]} 9. c3 {[%clk 0:03:03]} 9... Be7 {[%clk
0:03:06.6]} 10. Bg5 {[%clk 0:03:03.4]} 10... h6 {[%clk 0:03:01.2]} 11. Bxf6
{[%clk 0:03:03]} 11... Bxf6 {[%clk 0:03:01.7]} 12. O-O-O {[%clk 0:03:04.9]}
12... O-O {[%clk 0:03:00.9]} 13. Be4 {[%clk 0:03:01.2]} 13... Bxe4 {[%clk
0:03:00.9]} 14. Qxe4 {[%clk 0:03:01.5]} 14... Qd5 {[%clk 0:03:02.5]} 15. Qxd5
{[%clk 0:03:01.7]} 15... exd5 {[%clk 0:03:04.4]} 16. Rhe1 {[%clk 0:03:02.2]}
16... Rfe8 {[%clk 0:03:05]} 17. Kc2 {[%clk 0:03:02.7]} 17... Kf8 {[%clk
0:03:01.7]} 18. Kd3 {[%clk 0:03:03]} 18... Rxe1 {[%clk 0:02:54.5]} 19. Rxe1
{[%clk 0:03:03.5]} 19... Re8 {[%clk 0:02:56.4]} 20. Rxe8+ {[%clk 0:03:04.1]}
20... Kxe8 {[%clk 0:02:58.3]} 21. h3 {[%clk 0:03:00.5]} 21... Kd7 {[%clk
0:02:57.6]} 22. b3 {[%clk 0:03:00.7]} 22... c5 {[%clk 0:02:56.6]} 23. dxc5
{[%clk 0:03:01.6]} 23... bxc5 {[%clk 0:02:57.2]} 24. g4 {[%clk 0:02:59.9]} 24...
Kc6 {[%clk 0:02:42.5]} 25. a4 {[%clk 0:02:59.1]} 25... g6 {[%clk 0:02:29.5]} 26.
Ng1 {[%clk 0:02:55.3]} 26... Kd6 {[%clk 0:02:17.1]} 27. f4 {[%clk 0:02:53.6]}
27... Ke6 {[%clk 0:02:05.5]} 28. Nf3 {[%clk 0:02:52]} 28... Bg7 {[%clk
0:02:04.5]} 29. b4 {[%clk 0:02:51.3]} 29... c4+ {[%clk 0:01:59.4]} 30. Kc2
{[%clk 0:02:51.2]} 30... f5 {[%clk 0:01:56.7]} 31. Nd4+ {[%clk 0:02:49.4]} 31...
Bxd4 {[%clk 0:01:56.1]} 32. cxd4 {[%clk 0:02:49.8]} 32... fxg4 {[%clk
0:01:56.4]} 33. hxg4 {[%clk 0:02:51]} 33... h5 {[%clk 0:01:33.6]} 34. gxh5
{[%clk 0:02:50.8]} 34... gxh5 {[%clk 0:01:35]} 35. b5 {[%clk 0:02:52.2]} 35...
h4 {[%clk 0:01:33.4]} 36. a5 {[%clk 0:02:53.2]} 36... h3 {[%clk 0:01:33]} 37. b6
{[%clk 0:02:54.5]} 37... axb6 {[%clk 0:01:31.8]} 38. a6 {[%clk 0:02:55.4]} 38...
h2 {[%clk 0:01:32.8]} 39. a7 {[%clk 0:02:55.8]} 39... h1=Q {[%clk 0:01:33.2]}
40. a8=Q {[%clk 0:02:56.8]} 40... Qe4+ {[%clk 0:01:31.4]} 41. Kd1 {[%clk
0:02:51]} 41... Qxd4+ {[%clk 0:01:31.1]} 42. Kc2 {[%clk 0:02:50.6]} 42... Qe4+
{[%clk 0:01:30.5]} 43. Kc3 {[%clk 0:02:51]} 43... Qd3+ {[%clk 0:01:31.3]} 44.
Kb2 {[%clk 0:02:52.2]} 44... c3+ {[%clk 0:01:30.6]} 45. Ka3 {[%clk 0:02:50.6]}
45... c2+ {[%clk 0:01:28.6]} 46. Kb2 {[%clk 0:02:51.7]} 46... Qd2 {[%clk
0:00:45.1]} 47. Qe8+ {[%clk 0:02:47.3]} 47... Kd6 {[%clk 0:00:41.6]} 48. Qd8+
{[%clk 0:02:13.6]} 48... Kc5 {[%clk 0:00:39.3]} 49. Qc7+ {[%clk 0:02:12.1]}
49... Kb5 {[%clk 0:00:30]} 50. Qd7+ {[%clk 0:02:13.1]} 50... Ka6 {[%clk
0:00:15.6]} 51. Qa4+ {[%clk 0:01:59]} 51... Qa5 {[%clk 0:00:15.7]} 52. Qxa5+
{[%clk 0:01:59.9]} 52... bxa5 {[%clk 0:00:13.3]} 53. f5 {[%clk 0:02:01.8]} 53...
a4 {[%clk 0:00:13.3]} 54. f6 {[%clk 0:02:02.9]} 54... d4 {[%clk 0:00:14.4]} 55.
f7 {[%clk 0:02:03.2]} 55... a3+ {[%clk 0:00:14.4]} 56. Kxc2 {[%clk 0:02:03]}
56... a2 {[%clk 0:00:14.5]} 57. Kb2 {[%clk 0:02:04]} 57... d3 {[%clk 0:00:15.2]}
58. Kxa2 {[%clk 0:02:04.1]} 58... d2 {[%clk 0:00:16.4]} 59. f8=Q {[%clk
0:02:03.6]} 59... d1=Q {[%clk 0:00:17.6]} 60. Qa8+ {[%clk 0:01:58.8]} 60... Kb6
{[%clk 0:00:18.4]} 61. Qb8+ {[%clk 0:01:58.2]} 61... Ka6 {[%clk 0:00:19.5]} 62.
Qc8+ {[%clk 0:01:58.4]} 62... Kb6 {[%clk 0:00:20.3]} 63. Qb8+ {[%clk 0:01:58.9]}
63... Ka6 {[%clk 0:00:21.5]} 64. Qa8+ {[%clk 0:02:00.5]} 64... Kb6 {[%clk
0:00:22.7]} 65. Qb8+ {[%clk 0:02:00.1]} 65... Ka6 {[%clk 0:00:23.8]} 66. Qc8+
{[%clk 0:01:58.9]} 66... Kb6 {[%clk 0:00:24.9]} 67. Qe6+ {[%clk 0:01:59.3]}
67... Ka5 {[%clk 0:00:24.4]} 68. Qe5+ {[%clk 0:01:58.1]} 68... Kb6 {[%clk
0:00:24.8]} 69. Qe3+ {[%clk 0:01:58.1]} 69... Ka5 {[%clk 0:00:25.2]} 70. Qa3+
{[%clk 0:01:58.3]} 70... Qa4 {[%clk 0:00:25.1]} 71. Qxa4+ {[%clk 0:01:59.1]}
71... Kxa4 {[%clk 0:00:27]} 1/2-1/2

[Event "*** Titled Tuesday Blitz"]
[Site "Chess.com"]
[Date "2019.04.02"]
[Round "6"]
[White "Joseph_Truelson"]
[Black "Kawhi_Leonard2"]
[Result "1-0"]
[WhiteElo "2277"]
[BlackElo "2200"]
[TimeControl "180+2"]
[EndTime "15:20:39 PDT"]
[Termination "Joseph_Truelson won on time"]

1. d4 {[%clk 0:03:01.9]} 1... Nf6 {[%clk 0:03:00.3]} 2. Nc3 {[%clk 0:03:03.1]}
2... d5 {[%clk 0:03:00.7]} 3. Bf4 {[%clk 0:03:04.3]} 3... e6 {[%clk 0:03:01]} 4.
Nb5 {[%clk 0:03:03.2]} 4... Na6 {[%clk 0:02:59.1]} 5. e3 {[%clk 0:03:04.3]} 5...
c6 {[%clk 0:02:55.5]} 6. Nc3 {[%clk 0:03:05.5]} 6... Bd6 {[%clk 0:02:56.4]} 7.
Bxa6 {[%clk 0:03:04.4]} 7... bxa6 {[%clk 0:02:56.8]} 8. Nf3 {[%clk 0:02:59]}
8... Rb8 {[%clk 0:02:56.6]} 9. Rb1 {[%clk 0:02:58.9]} 9... a5 {[%clk 0:02:56]}
10. O-O {[%clk 0:02:57.9]} 10... c5 {[%clk 0:02:52.3]} 11. Bxd6 {[%clk
0:02:54.9]} 11... Qxd6 {[%clk 0:02:52.5]} 12. dxc5 {[%clk 0:02:56.4]} 12... Qxc5
{[%clk 0:02:53.3]} 13. Qd4 {[%clk 0:02:57.9]} 13... Qc7 {[%clk 0:02:42.7]} 14.
a4 {[%clk 0:02:45.2]} 14... Ba6 {[%clk 0:02:38.9]} 15. Rfe1 {[%clk 0:02:40.2]}
15... Rb4 {[%clk 0:02:39.5]} 16. Qe5 {[%clk 0:02:30.2]} 16... Qb6 {[%clk
0:02:39.8]} 17. Nd4 {[%clk 0:02:21]} 17... O-O {[%clk 0:02:36.2]} 18. b3 {[%clk
0:02:02.1]} 18... Rc8 {[%clk 0:02:36.4]} 19. Ncb5 {[%clk 0:01:53.7]} 19... Bxb5
{[%clk 0:02:37.5]} 20. axb5 {[%clk 0:01:50.2]} 20... Nd7 {[%clk 0:02:36.6]} 21.
Qg3 {[%clk 0:01:44.3]} 21... a6 {[%clk 0:02:18]} 22. Nc6 {[%clk 0:01:33.8]}
22... Rxc6 {[%clk 0:01:58.8]} 23. bxc6 {[%clk 0:01:31.9]} 23... Qxc6 {[%clk
0:02:00.7]} 24. c4 {[%clk 0:01:22.8]} 24... h6 {[%clk 0:01:43.4]} 25. cxd5
{[%clk 0:01:23.3]} 25... Qxd5 {[%clk 0:01:44.5]} 26. Red1 {[%clk 0:01:21.4]}
26... Qb7 {[%clk 0:01:41.7]} 27. Qd6 {[%clk 0:01:18.4]} 27... Nf6 {[%clk
0:01:34.8]} 28. Ra1 {[%clk 0:01:13]} 28... Rxb3 {[%clk 0:01:18.9]} 29. Rxa5
{[%clk 0:01:08.8]} 29... Rb6 {[%clk 0:01:18.8]} 30. Qd8+ {[%clk 0:01:00.6]}
30... Kh7 {[%clk 0:01:19.9]} 31. h3 {[%clk 0:00:57.5]} 31... Rb2 {[%clk
0:01:13.8]} 32. Qd3+ {[%clk 0:00:56.8]} 32... g6 {[%clk 0:01:00.1]} 33. Rxa6
{[%clk 0:00:49.6]} 33... Ne4 {[%clk 0:00:54.9]} 34. Rf1 {[%clk 0:00:36.8]} 34...
Rd2 {[%clk 0:00:45.7]} 35. Qc4 {[%clk 0:00:19.2]} 35... Nd6 {[%clk 0:00:38.3]}
36. Qc6 {[%clk 0:00:19.4]} 36... Qb2 {[%clk 0:00:30.9]} 37. Ra7 {[%clk
0:00:18.7]} 37... Kg7 {[%clk 0:00:29.9]} 38. Rd7 {[%clk 0:00:19.2]} 38... Nf5
{[%clk 0:00:21.5]} 39. Rxd2 {[%clk 0:00:18.2]} 39... Qxd2 {[%clk 0:00:21.6]} 40.
Qf3 {[%clk 0:00:19.5]} 40... h5 {[%clk 0:00:21.2]} 41. g3 {[%clk 0:00:19.6]}
41... Qc2 {[%clk 0:00:16.1]} 42. Rd1 {[%clk 0:00:19.4]} 42... e5 {[%clk
0:00:15.3]} 43. Rd7 {[%clk 0:00:18.5]} 43... e4 {[%clk 0:00:14.5]} 44. Qd1
{[%clk 0:00:16.8]} 44... Qc3 {[%clk 0:00:04.8]} 45. Qd5 {[%clk 0:00:15.4]} 45...
Nxg3 {[%clk 0:00:02.4]} 46. Qxf7+ {[%clk 0:00:11]} 46... Kh6 {[%clk 0:00:02.6]}
47. Qf4+ {[%clk 0:00:09.9]} 1-0

[Event "*** Titled Tuesday Blitz"]
[Site "Chess.com"]
[Date "2019.04.02"]
[Round "6"]
[White "Vuk2000"]
[Black "iLuusions"]
[Result "1-0"]
[WhiteElo "2720"]
[BlackElo "2615"]
[TimeControl "180+2"]
[EndTime "15:20:43 PDT"]
[Termination "Vuk2000 won by resignation"]

1. d4 {[%clk 0:03:01.9]} 1... Nf6 {[%clk 0:03:00.8]} 2. Bg5 {[%clk 0:03:02.9]}
2... d5 {[%clk 0:02:58]} 3. e3 {[%clk 0:03:02.6]} 3... c5 {[%clk 0:02:57.1]} 4.
Bxf6 {[%clk 0:02:57]} 4... exf6 {[%clk 0:02:54.6]} 5. Nc3 {[%clk 0:02:54]} 5...
Be6 {[%clk 0:02:52.3]} 6. g3 {[%clk 0:02:53.2]} 6... Nc6 {[%clk 0:02:50.8]} 7.
Nge2 {[%clk 0:02:53.1]} 7... Qb6 {[%clk 0:02:47.3]} 8. Rb1 {[%clk 0:02:52.1]}
8... cxd4 {[%clk 0:02:44.2]} 9. exd4 {[%clk 0:02:51.8]} 9... Bb4 {[%clk
0:02:43.6]} 10. Bg2 {[%clk 0:02:48.5]} 10... Bxc3+ {[%clk 0:02:22.7]} 11. Nxc3
{[%clk 0:02:34.4]} 11... Rd8 {[%clk 0:02:05.4]} 12. O-O {[%clk 0:01:56]} 12...
Qxd4 {[%clk 0:02:04.4]} 13. Qxd4 {[%clk 0:01:28.6]} 13... Nxd4 {[%clk
0:02:06.3]} 14. Rbc1 {[%clk 0:01:21.2]} 14... Nc6 {[%clk 0:01:57.8]} 15. Rfd1
{[%clk 0:01:22]} 15... d4 {[%clk 0:01:56.1]} 16. Nb5 {[%clk 0:01:19.7]} 16...
O-O {[%clk 0:01:43.8]} 17. Bxc6 {[%clk 0:01:12.7]} 17... bxc6 {[%clk 0:01:44.6]}
18. Nxd4 {[%clk 0:01:13.8]} 18... Rd5 {[%clk 0:01:21]} 19. Nxc6 {[%clk
0:01:08.6]} 19... Rc5 {[%clk 0:01:14.9]} 20. Nd4 {[%clk 0:01:03.6]} 20... Bd5
{[%clk 0:01:05.3]} 21. a3 {[%clk 0:00:54.9]} 21... Rfc8 {[%clk 0:01:02.3]} 22.
c3 {[%clk 0:00:55.9]} 22... g6 {[%clk 0:01:00.6]} 23. Rd2 {[%clk 0:00:56.1]}
23... a5 {[%clk 0:00:59.7]} 24. Nc2 {[%clk 0:00:50.9]} 24... Kg7 {[%clk
0:00:47.7]} 25. Ne3 {[%clk 0:00:48.6]} 25... Bf3 {[%clk 0:00:46.3]} 26. Rd4
{[%clk 0:00:47.3]} 26... h5 {[%clk 0:00:39.7]} 27. Rf4 {[%clk 0:00:38.3]} 27...
Bb7 {[%clk 0:00:30.6]} 28. h4 {[%clk 0:00:37.7]} 28... f5 {[%clk 0:00:28.1]} 29.
Rd4 {[%clk 0:00:37.6]} 29... Bf3 {[%clk 0:00:28.8]} 30. Nf1 {[%clk 0:00:35.8]}
30... Re5 {[%clk 0:00:22.9]} 31. b4 {[%clk 0:00:32.9]} 31... axb4 {[%clk
0:00:22.8]} 32. axb4 {[%clk 0:00:33.9]} 32... Re2 {[%clk 0:00:21.8]} 33. Rd3
{[%clk 0:00:32.2]} 33... Be4 {[%clk 0:00:22]} 34. Re3 {[%clk 0:00:33.4]} 34...
Rb2 {[%clk 0:00:22.8]} 35. Ree1 {[%clk 0:00:28.3]} 35... Rb3 {[%clk 0:00:19.8]}
36. Nd2 {[%clk 0:00:27.5]} 36... Rbxc3 {[%clk 0:00:20.8]} 37. Rxc3 {[%clk
0:00:27.9]} 37... Rxc3 {[%clk 0:00:22.7]} 38. Nxe4 {[%clk 0:00:28.6]} 38... fxe4
{[%clk 0:00:24.6]} 39. Rxe4 {[%clk 0:00:30]} 39... Rb3 {[%clk 0:00:26.5]} 40.
Rf4 {[%clk 0:00:31]} 40... Rb2 {[%clk 0:00:26.8]} 41. Kf1 {[%clk 0:00:31.8]}
41... Kg8 {[%clk 0:00:25.3]} 42. Kg2 {[%clk 0:00:33]} 42... Kg7 {[%clk
0:00:26.7]} 43. Kf3 {[%clk 0:00:33.5]} 43... Rb3+ {[%clk 0:00:27.5]} 44. Ke2
{[%clk 0:00:33.8]} 44... f6 {[%clk 0:00:28.8]} 45. Kd2 {[%clk 0:00:17.3]} 45...
g5 {[%clk 0:00:27.5]} 46. Kc2 {[%clk 0:00:18.4]} 46... Ra3 {[%clk 0:00:21.5]}
47. Kb2 {[%clk 0:00:19.5]} 47... Rd3 {[%clk 0:00:21.2]} 48. Rc4 {[%clk
0:00:19.9]} 48... Rd2+ {[%clk 0:00:19.7]} 49. Rc2 {[%clk 0:00:20.4]} 49... Rxf2
{[%clk 0:00:21.6]} 50. Rxf2 {[%clk 0:00:21.2]} 1-0

[Event "*** Titled Tuesday Blitz"]
[Site "Chess.com"]
[Date "2019.04.02"]
[Round "6"]
[White "Jospem"]
[Black "Ginger_GM"]
[Result "0-1"]
[WhiteElo "2764"]
[BlackElo "2624"]
[TimeControl "180+2"]
[EndTime "15:20:44 PDT"]
[Termination "Ginger_GM won by checkmate"]

1. c4 {[%clk 0:03:01.9]} 1... f5 {[%clk 0:03:00.6]} 2. Nf3 {[%clk 0:03:03.1]}
2... Nf6 {[%clk 0:03:01.3]} 3. d4 {[%clk 0:03:04.7]} 3... e6 {[%clk 0:03:02.2]}
4. g3 {[%clk 0:03:06.6]} 4... Be7 {[%clk 0:03:00.7]} 5. Bg2 {[%clk 0:03:08.2]}
5... O-O {[%clk 0:03:01.9]} 6. O-O {[%clk 0:03:10.1]} 6... d6 {[%clk 0:03:03.3]}
7. b3 {[%clk 0:03:11.7]} 7... a5 {[%clk 0:03:03.4]} 8. Nc3 {[%clk 0:03:12.6]}
8... Qe8 {[%clk 0:03:03.5]} 9. Bb2 {[%clk 0:03:13.5]} 9... Qh5 {[%clk
0:02:56.3]} 10. Qd3 {[%clk 0:03:14.1]} 10... Nc6 {[%clk 0:02:56.7]} 11. d5
{[%clk 0:03:14.4]} 11... Nb4 {[%clk 0:02:57.4]} 12. Qd1 {[%clk 0:03:10.4]} 12...
e5 {[%clk 0:02:58.4]} 13. a3 {[%clk 0:03:04.1]} 13... Na6 {[%clk 0:02:58.9]} 14.
b4 {[%clk 0:02:48.4]} 14... f4 {[%clk 0:02:58.5]} 15. Qd3 {[%clk 0:02:22]} 15...
Bf5 {[%clk 0:02:50.3]} 16. e4 {[%clk 0:02:21.4]} 16... fxe3 {[%clk 0:02:15.4]}
17. Qxe3 {[%clk 0:02:22.5]} 17... Ng4 {[%clk 0:02:16.4]} 18. Qe2 {[%clk
0:01:52.2]} 18... Bd3 {[%clk 0:02:16.8]} 19. Qd1 {[%clk 0:01:29.3]} 19... e4
{[%clk 0:01:36.2]} 20. h3 {[%clk 0:01:13.2]} 20... exf3 {[%clk 0:01:30.6]} 21.
Bxf3 {[%clk 0:00:55]} 21... Rxf3 {[%clk 0:01:21.6]} 22. Qxf3 {[%clk 0:00:51]}
22... Qxh3 {[%clk 0:01:19.8]} 23. Qg2 {[%clk 0:00:52.4]} 23... Qxg2+ {[%clk
0:01:20]} 24. Kxg2 {[%clk 0:00:54.3]} 24... Bxf1+ {[%clk 0:01:20.8]} 25. Kxf1
{[%clk 0:00:56.2]} 25... Rf8 {[%clk 0:01:18.5]} 26. Ne4 {[%clk 0:00:51.6]} 26...
Ne3+ {[%clk 0:01:15.7]} 27. Kg1 {[%clk 0:00:49.7]} 27... Nxc4 {[%clk 0:01:16]}
28. Bc3 {[%clk 0:00:51.3]} 28... a4 {[%clk 0:01:06.3]} 29. Bd4 {[%clk
0:00:49.6]} 29... b5 {[%clk 0:01:02.6]} 30. Nc3 {[%clk 0:00:50.3]} 30... Rb8
{[%clk 0:00:55.1]} 31. Ne4 {[%clk 0:00:51.7]} 31... Kf7 {[%clk 0:00:53.7]} 32.
Kg2 {[%clk 0:00:48.9]} 32... Rc8 {[%clk 0:00:47.2]} 33. Rh1 {[%clk 0:00:47.7]}
33... h6 {[%clk 0:00:48.2]} 34. Ra1 {[%clk 0:00:48.6]} 34... c6 {[%clk
0:00:48.9]} 35. dxc6 {[%clk 0:00:49.8]} 35... Rxc6 {[%clk 0:00:50]} 36. Nc3
{[%clk 0:00:51.7]} 36... Nc7 {[%clk 0:00:49.3]} 37. Ne4 {[%clk 0:00:48.3]} 37...
d5 {[%clk 0:00:49]} 38. Nc3 {[%clk 0:00:49.5]} 38... Bf6 {[%clk 0:00:45.5]} 39.
Bxf6 {[%clk 0:00:50.7]} 39... Rxf6 {[%clk 0:00:46.1]} 40. Ne2 {[%clk 0:00:51]}
40... Ne6 {[%clk 0:00:42.6]} 41. Nc3 {[%clk 0:00:51.3]} 41... Nc7 {[%clk
0:00:36.5]} 42. Ne2 {[%clk 0:00:52.7]} 42... Re6 {[%clk 0:00:36.5]} 43. Nf4
{[%clk 0:00:51.5]} 43... Re5 {[%clk 0:00:34.9]} 44. Kf3 {[%clk 0:00:44.8]} 44...
Ne6 {[%clk 0:00:34.5]} 45. Nd3 {[%clk 0:00:44.6]} 45... Rf5+ {[%clk 0:00:34.8]}
46. Kg2 {[%clk 0:00:46]} 46... h5 {[%clk 0:00:33.5]} 47. Ra2 {[%clk 0:00:45.3]}
47... g5 {[%clk 0:00:34.2]} 48. Ra1 {[%clk 0:00:46]} 48... g4 {[%clk 0:00:33.9]}
49. Re1 {[%clk 0:00:40.4]} 49... Kf6 {[%clk 0:00:31.8]} 50. Nc5 {[%clk
0:00:31.7]} 50... Nxc5 {[%clk 0:00:31]} 51. bxc5 {[%clk 0:00:33.6]} 51... d4
{[%clk 0:00:32.5]} 52. c6 {[%clk 0:00:33.9]} 52... Rc5 {[%clk 0:00:33.7]} 53.
Re4 {[%clk 0:00:35]} 53... d3 {[%clk 0:00:33]} 54. Rd4 {[%clk 0:00:34.8]} 54...
d2 {[%clk 0:00:33.7]} 55. f4 {[%clk 0:00:35]} 55... Rxc6 {[%clk 0:00:34.3]} 56.
Kf2 {[%clk 0:00:36.3]} 56... Rd6 {[%clk 0:00:35.2]} 57. Ke2 {[%clk 0:00:37.4]}
57... Rxd4 {[%clk 0:00:36.1]} 58. Kd1 {[%clk 0:00:39.3]} 58... Nxa3 {[%clk
0:00:33.1]} 59. Ke2 {[%clk 0:00:40.6]} 59... d1=Q+ {[%clk 0:00:34]} 60. Ke3
{[%clk 0:00:42.5]} 60... Qd2# {[%clk 0:00:33.9]} 0-1

[Event "*** Titled Tuesday Blitz"]
[Site "Chess.com"]
[Date "2019.04.02"]
[Round "6"]
[White "MaxLeto"]
[Black "FrenchMonster2002"]
[Result "0-1"]
[WhiteElo "2314"]
[BlackElo "2357"]
[TimeControl "180+2"]
[EndTime "15:20:45 PDT"]
[Termination "FrenchMonster2002 won by resignation"]

1. d4 {[%clk 0:02:47.2]} 1... Nf6 {[%clk 0:03:00.6]} 2. h4 {[%clk 0:02:48.1]}
2... c5 {[%clk 0:02:59.1]} 3. d5 {[%clk 0:02:48.2]} 3... e6 {[%clk 0:02:57.8]}
4. c4 {[%clk 0:02:49.4]} 4... b5 {[%clk 0:02:55.1]} 5. Nf3 {[%clk 0:02:26.7]}
5... Bb7 {[%clk 0:02:48.2]} 6. Nc3 {[%clk 0:02:21.5]} 6... b4 {[%clk 0:02:40.4]}
7. Na4 {[%clk 0:02:12]} 7... exd5 {[%clk 0:02:39.6]} 8. cxd5 {[%clk 0:02:11.6]}
8... Bxd5 {[%clk 0:02:30.5]} 9. Bg5 {[%clk 0:02:07.6]} 9... Bc6 {[%clk
0:02:26.8]} 10. Rc1 {[%clk 0:02:03.5]} 10... h6 {[%clk 0:02:10.7]} 11. Bxf6
{[%clk 0:01:34.3]} 11... Qxf6 {[%clk 0:02:12.6]} 12. Nxc5 {[%clk 0:01:35.5]}
12... Bxc5 {[%clk 0:02:05.4]} 13. Rxc5 {[%clk 0:01:37.4]} 13... Qxb2 {[%clk
0:02:06.2]} 14. Re5+ {[%clk 0:01:38.1]} 14... Kd8 {[%clk 0:01:52]} 15. Rc5
{[%clk 0:01:17.1]} 15... Qxa2 {[%clk 0:01:31]} 16. Ne5 {[%clk 0:01:01.8]} 16...
Kc7 {[%clk 0:01:18.6]} 17. e3 {[%clk 0:00:17.6]} 17... d6 {[%clk 0:01:10.8]} 18.
Bc4 {[%clk 0:00:18]} 18... Qb2 {[%clk 0:00:59.7]} 19. Nxf7 {[%clk 0:00:15.2]}
19... dxc5 {[%clk 0:00:50.6]} 20. Qd6+ {[%clk 0:00:11.6]} 20... Kb6 {[%clk
0:00:50.5]} 21. O-O {[%clk 0:00:04.7]} 21... Rc8 {[%clk 0:00:39.1]} 22. Ne5
{[%clk 0:00:05]} 22... a5 {[%clk 0:00:26.1]} 23. Be6 {[%clk 0:00:06]} 23... Qe2
{[%clk 0:00:11.9]} 24. Bxc8 {[%clk 0:00:05.9]} 24... a4 {[%clk 0:00:07]} 25. Bg4
{[%clk 0:00:03.3]} 25... Qb5 {[%clk 0:00:06.9]} 26. Bf3 {[%clk 0:00:02.9]} 26...
a3 {[%clk 0:00:06]} 27. Qd8+ {[%clk 0:00:04.4]} 27... Kb7 {[%clk 0:00:05.7]} 28.
Qe7+ {[%clk 0:00:03.9]} 28... Kb6 {[%clk 0:00:06.2]} 29. Qd8+ {[%clk 0:00:04.4]}
29... Kb7 {[%clk 0:00:07.8]} 30. Rd1 {[%clk 0:00:05.6]} 30... Bxf3 {[%clk
0:00:07.3]} 31. gxf3 {[%clk 0:00:07]} 31... a2 {[%clk 0:00:07.4]} 32. Qe7+
{[%clk 0:00:08.4]} 32... Kb6 {[%clk 0:00:07.5]} 33. Rd6+ {[%clk 0:00:09.3]}
33... Ka5 {[%clk 0:00:08.2]} 34. Qc7+ {[%clk 0:00:10.4]} 34... Ka4 {[%clk
0:00:08.9]} 35. Rd1 {[%clk 0:00:11.1]} 35... Kb3 {[%clk 0:00:08.4]} 36. Qf7+
{[%clk 0:00:12.1]} 36... c4 {[%clk 0:00:09.6]} 37. Qf5 {[%clk 0:00:12.2]} 37...
a1=Q {[%clk 0:00:09.3]} 38. Rxa1 {[%clk 0:00:09.1]} 38... Rxa1+ {[%clk
0:00:11.2]} 39. Kg2 {[%clk 0:00:11]} 39... Nc6 {[%clk 0:00:10.6]} 40. Nxc6
{[%clk 0:00:09.7]} 40... Qxf5 {[%clk 0:00:11.5]} 41. Nd4+ {[%clk 0:00:11.1]}
41... Kc3 {[%clk 0:00:12.8]} 42. Nxf5 {[%clk 0:00:13]} 42... b3 {[%clk
0:00:14.4]} 43. Nxg7 {[%clk 0:00:14.9]} 43... b2 {[%clk 0:00:15.8]} 44. Nf5
{[%clk 0:00:16.8]} 44... b1=Q {[%clk 0:00:16.7]} 45. Nxh6 {[%clk 0:00:18.7]}
45... Qg6+ {[%clk 0:00:17.6]} 46. Ng4 {[%clk 0:00:19.6]} 46... Qh5 {[%clk
0:00:16]} 47. Kg3 {[%clk 0:00:20.5]} 47... Rg1+ {[%clk 0:00:16.4]} 48. Kf4
{[%clk 0:00:21.4]} 48... Qxh4 {[%clk 0:00:17.1]} 49. e4 {[%clk 0:00:22.9]} 49...
Rxg4+ {[%clk 0:00:17]} 50. fxg4 {[%clk 0:00:23.9]} 50... Qxf2+ {[%clk
0:00:18.9]} 0-1